[Event "Spring Chess Classic B 2024"]
[Site "Saint Louis"]
[Date "2024.04.18"]
[Round "8.3"]
[White "Ali Marandi, Cemil Can"]
[Black "Stearman, Josiah"]
[Result "1/2-1/2"]
[ECO "C81"]
[WhiteElo "2516"]
[BlackElo "2462"]
[Annotator "TA"]
[PlyCount "114"]
[EventDate "2024.04.11"]
[EventCountry "USA"]
[SourceTitle "playchess.com"]
[Source "ChessBase"]
[SourceQuality "1"]
[TimeControl "7200+30"]

{[%evp 30,114,31,8,16,5,6,10,18,15,13,13,15,11,22,20,111,106,109,45,59,50,50,58,57,60,60,57,62,57,83,76,79,78,85,86,86,71,71,64,64,64,64,64,64,64,64,64,64,64,71,71,71,71,71,52,52,52,72,72,87,34,85,0,0,0,0,0,0,0,0,0,0,0,0,0,0,0,0,0,0,0,0,0,0,0,0]} 1. e4 {[%emt 0:00:03]} e5 {[%emt 0:01:50]} 2. Nf3 {[%emt 0:00:16]} Nc6 {[%emt 0:00:03]} 3. Bb5 {[%emt 0:00:15][%cal Bf1b5,Bb5a4,Ba4b3,Bb3c4][%mdl 32]} a6 {[%emt 0:00:04]} 4. Ba4 {[%emt 0:00:07]} Nf6 {[%emt 0:00:07]} 5. O-O {[%emt 0:00:20]} Nxe4 {[%emt 0:00:05]} 6. d4 {[%emt 0:00:36]} b5 {[%emt 0:00:06]} 7. Bb3 {[%emt 0:00:10]} d5 {[%emt 0:00:05]} 8. dxe5 {[%emt 0:00:09]} Be6 {[%emt 0:00:04]} 9. Qe2 {[%emt 0:00:15]} Be7 {[%emt 0:00:26]} 10. Rd1 {[%emt 0:01:57]} O-O {[%emt 0:00:09]} 11. c4 {[%emt 0:00:13]} bxc4 {[%emt 0:00:04]} 12. Bxc4 {[%emt 0:00:05]} Bc5 {[%emt 0:00:03]} 13. Be3 {[%emt 0:00:26]} Bxe3 {[%emt 0:00:06]} 14. Qxe3 {[%emt 0:00:08]} Qb8 {[%emt 0:00:04]} 15. Bb3 {[%emt 0:00:52]} Na5 {[%emt 0:00:07]} 16. Nbd2 {[%emt 0:04:42]} Nxb3 {[%emt 0:00:11]} 17. axb3 {[%emt 0:06:29]} Nxd2 {[%emt 0:05:29]} 18. Rxd2 {[%emt 0:01:00]} Rc8 {[%emt 0:00:38] Black is weak on the dark squares} 19. Rc1 {[%emt 0:05:40]} Qb4 {[%emt 0:10:16]} 20. Rc6 {[%emt 0:18:42]} Rab8 {[%emt 0:01:32]} 21. Rd3 {[%emt 0:10:58][%cal Od3c3]} a5 {[%emt 0:05:05]} (21... h6 {feels hotter.} 22. Rdc3 Qe4 23. Nd4 Bd7) 22. h3 {[%emt 0:06:23]} a4 {[%emt 0:02:05]} (22... Bd7 $11 {remains equal.} 23. Rc5 c6) 23. Nd4 $1 $16 {[%emt 0:01:27]} Bd7 {[%emt 0:00:10] [#]} 24. e6 {[%emt 0:05:08]} fxe6 $1 $14 {[%emt 0:00:38] [#]} (24... Bxc6 25. exf7+ (25. Nxc6 Qd6 $16) 25... Kf8 26. Ne6+ (26. Nxc6 Qd6 $18) 26... Kxf7 27. Ng5+ Kf8 28. Qe6 $18 (28. Nxh7+ $2 Kg8 $19) (28. Nxh7+ $2 Kg8 $19)) 25. Qe5 $1 {[%emt 0:01:57][%cal Od3g3] aiming for Rg3!} Qe7 {[%emt 0:07:30] [#]} (25... Bxc6 $2 26. Rg3 Qf8 27. Nxe6 $18) 26. Rg3 $1 {[%emt 0:01:20] White wants to mate with Nf5.} Kh8 $1 {[%emt 0:00:33]} (26... Bxc6 $2 27. Nf5 (27. Nxc6 Qd7 $14) 27... exf5 28. Qxe7 $18) 27. Rxc7 {[%emt 0:05:28]} Rxc7 {[%emt 0:00:27]} 28. Qxc7 {[%emt 0:12:01]} Rc8 {[%emt 0:00:36]} 29. Qe5 {[%emt 0:01:13]} Qf6 {[%emt 0:00:51]} 30. Qd6 {[%emt 0:00:45]} (30. Qxf6 gxf6 31. bxa4 Rc4 $11) 30... Qxd4 {[%emt 0:04:08]} 31. Qxd7 $16 {[%emt 0:01:42][%mdl 4096] Endgame. KQR-KQR} Rg8 {[%emt 0:02:32]} 32. bxa4 {[%emt 0:02:16]} (32. Qxe6 Qxb2 33. bxa4 (33. Qxd5 $2 {perishes.} a3 $19) 33... Qa1+ 34. Kh2 Qxa4 $14) 32... Qxb2 {[%emt 0:00:13]} 33. Qxe6 {[%emt 0:02:39][%cal Og1h2]} Qa1+ {[%emt 0:04:13]} 34. Kh2 {[%emt 0:00:08] Active counter play!} Qxa4 {[%emt 0:00:03]} 35. Qxd5 {[%emt 0:00:09]} Qf4 {[%emt 0:00:04]} 36. Qc5 {[%emt 0:00:47]} h6 {[%emt 0:01:57]} 37. Qe3 {[%emt 0:00:34]} Qb8 {[%emt 0:01:50]} 38. Qd4 {[%emt 0:01:49]} Qc7 {[%emt 0:02:16]} 39. Qc3 {[%emt 0:00:38]} Qxc3 {[%emt 0:00:20]} 40. Rxc3 $14 {[%emt 0:00:03] KR-KR} Ra8 {[%emt 0:00:12]} 41. g4 {[%emt 0:00:37]} Kh7 {[%emt 0:00:20][%cal Oh6h5]} 42. f4 {[%emt 0:00:18]} Ra7 {[%emt 0:00:56]} 43. Kg3 {[%emt 0:00:29]} Kg8 {[%emt 0:00:15]} 44. h4 {[%emt 0:01:34]} Kf7 {[%emt 0:00:23] [#]} 45. f5 {[%emt 0:00:27]} (45. h5 $1 $16) 45... Ra1 {[%emt 0:01:44]} (45... g6 $14) 46. g5 {[%emt 0:03:10]} (46. Rc7+ $16 Kf6 47. Rc6+ Kf7 48. g5 hxg5 49. hxg5) 46... hxg5 $11 {[%emt 0:00:07] The position is equal.} 47. hxg5 {[%emt 0:00:05]} Rg1+ {[%emt 0:00:06]} 48. Kf4 {[%emt 0:00:16]} Rf1+ {[%emt 0:00:05]} 49. Rf3 {[%emt 0:01:25]} Ra1 {[%emt 0:00:26]} 50. Re3 {[%emt 0:00:18]} Rf1+ $1 {[%emt 0:00:04]} 51. Rf3 {[%emt 0:02:32]} Ra1 {[%emt 0:00:05]} 52. Re3 {[%emt 0:01:29]} Rf1+ $1 {[%emt 0:00:07]} 53. Ke5 {[%emt 0:00:11]} g6 {[%emt 0:00:14]} 54. fxg6+ {[%emt 0:00:03]} Kxg6 {[%emt 0:00:06]} 55. Rg3 {[%emt 0:00:15]} Rf5+ {[%emt 0:00:04]} 56. Ke4 {[%emt 0:00:07]} Rxg5 {[%emt 0:00:03]} 57. Rxg5+ {[%emt 0:00:06]} Kxg5 {[%emt 0:00:02] Weighted Error Value: White=0.07 (flawless) /Black=0.07 (flawless) .  Mistake:       	White=3     	Black=2      Inaccurate:     	---       	Black=1      OK:         	White=13    	Black=16     Best:        	White=2     	Black=5      Strong:       	White=3     	Black=4} 1/2-1/2

[Event "Spring Chess Classic B 2024"]
[Site "Saint Louis"]
[Date "2024.04.18"]
[Round "8.4"]
[White "Kevlishvili, Robby"]
[Black "Van Foreest, Lucas"]
[Result "1/2-1/2"]
[ECO "C67"]
[WhiteElo "2524"]
[BlackElo "2512"]
[Annotator "TA"]
[PlyCount "64"]
[EventDate "2024.04.11"]
[EventCountry "USA"]
[SourceTitle "playchess.com"]
[Source "ChessBase"]
[SourceQuality "1"]
[TimeControl "7200+30"]

{[%evp 9,64,18,22,0,8,0,25,11,7,20,20,7,13,8,22,10,12,6,9,5,6,4,10,8,6,5,8,0,0,0,0,0,0,0,0,0,0,-1,-1,-1,-1,-1,-1,-2,0,0,0,0,0,0,0,0,0,0,0,0,0]} 1. e4 {[%emt 0:00:04]} e5 {[%emt 0:00:43]} 2. Nf3 {[%emt 0:00:07]} Nc6 {[%emt 0:00:16]} 3. Bb5 {[%emt 0:00:07]} Nf6 {[%emt 0:00:25]} 4. O-O {[%emt 0:00:17]} Nxe4 {[%emt 0:00:38]} 5. Re1 {[%emt 0:00:09]} Nd6 {[%emt 0:00:04]} 6. a4 {[%emt 0:00:07]} Be7 {[%emt 0:05:06]} 7. Nc3 {[%emt 0:00:11]} Nxb5 {[%emt 0:04:59]} 8. axb5 {[%emt 0:00:56] White has an edge.} Nb4 {[%emt 0:00:09] The position is equal.} 9. d4 {[%emt 0:09:48]} d6 {[%emt 0:01:05]} 10. Ra4 $1 {[%emt 0:09:58]} a5 {[%emt 0:00:53]} 11. bxa6 {[%emt 0:01:50]} Nxa6 {[%emt 0:00:07]} 12. dxe5 {[%emt 0:00:14]} dxe5 {[%emt 0:00:51] Threatens to win with ...Qxd1.} 13. Qxd8+ {[%emt 0:09:10]} Bxd8 {[%emt 0:00:07]} 14. Rxe5+ {[%emt 0:00:15]} Be6 {[%emt 0:00:15]} 15. Nd4 {[%emt 0:01:12]} Bf6 {[%emt 0:00:51]} 16. Re1 {[%emt 0:01:33]} Bxd4 {[%emt 0:00:09]} 17. Rxd4 {[%emt 0:00:08]} Rd8 {[%emt 0:01:24] Black is weak on the dark squares} 18. Rxd8+ {[%emt 0:04:47]} Kxd8 {[%emt 0:00:13]} 19. Bf4 {[%emt 0:00:12]} Re8 {[%emt 0:00:41]} 20. f3 {[%emt 0:01:14]} Re7 {[%emt 0:00:15]} 21. Nb5 {[%emt 0:01:12]} Bf5 {[%emt 0:00:27][%csl LRc2,LRe1]} 22. Rxe7 {[%emt 0:00:10]} Kxe7 {[%emt 0:00:02]} 23. Nxc7 {[%emt 0:00:10]} Nxc7 {[%emt 0:00:01]} 24. Bxc7 {[%emt 0:00:10]} Bxc2 $11 {[%emt 0:00:02][%mdl 4096] Endgame. KB-KB} 25. Kf2 {[%emt 0:00:10]} Bd3 {[%emt 0:00:09]} 26. Kg1 {[%emt 0:00:10]} f6 {[%emt 0:00:07]} 27. Kf2 {[%emt 0:00:06]} Kf7 {[%emt 0:00:03]} 28. Bd6 {[%emt 0:00:12]} Bc2 {[%emt 0:00:09]} 29. Bc7 {[%emt 0:00:06]} Bd3 {[%emt 0:00:04]} 30. Bd6 {[%emt 0:00:06]} Bc2 {[%emt 0:00:03]} 31. Bc7 {[%emt 0:00:05]} Bd3 {[%emt 0:00:03]} 32. Bd6 {[%emt 0:00:06]} Bc2 {[%emt 0:00:03] An uneventful encounter.   Weighted Error Value: White=0.02 (flawless) /Black=0.02 (flawless) .  OK:         	White=11    	Black=14     Best:        	---       	Black=1      Strong:       	White=1     	---} 1/2-1/2

[Event "Spring Chess Classic B 2024"]
[Site "Saint Louis"]
[Date "2024.04.19"]
[Round "8.5"]
[White "Budisavljevic, Luka"]
[Black "Chandra, Akshat"]
[Result "1-0"]
[ECO "D75"]
[WhiteElo "2483"]
[BlackElo "2489"]
[Annotator "TA"]
[PlyCount "77"]
[EventDate "2024.04.11"]
[EventCountry "USA"]
[SourceTitle "playchess.com"]
[Source "ChessBase"]
[SourceQuality "1"]
[TimeControl "7200+30"]

{[%evp 23,77,14,11,16,16,19,20,18,15,5,6,16,11,16,20,18,27,19,20,13,12,15,13,12,27,14,24,24,24,23,68,25,54,0,0,0,6,17,30,11,9,13,214,215,217,218,218,218,259,260,250,202,496,504,481,449]} 1. Nf3 {[%emt 0:00:05]} d5 {[%emt 0:00:34]} 2. g3 {[%emt 0:00:26]} c5 {[%emt 0:10:08]} 3. Bg2 {[%emt 0:00:07]} Nf6 {[%emt 0:00:06]} 4. O-O {[%emt 0:00:17]} g6 {[%emt 0:01:25]} 5. c4 {[%emt 0:00:25]} Bg7 {[%emt 0:01:19]} 6. cxd5 {[%emt 0:01:14]} Nxd5 {[%emt 0:00:31]} 7. d4 {[%emt 0:00:14]} cxd4 {[%emt 0:00:25]} 8. Nxd4 {[%emt 0:00:06]} O-O {[%emt 0:00:44]} 9. Nc3 {[%emt 0:01:12]} Nxc3 {[%emt 0:04:15]} 10. bxc3 {[%emt 0:00:03]} Nc6 {[%emt 0:03:26]} 11. Nxc6 {[%emt 0:22:43]} bxc6 {[%emt 0:00:07]} 12. Qxd8 {[%emt 0:01:46]} Rxd8 {[%emt 0:00:05]} 13. Bxc6 {[%emt 0:03:05]} Rb8 {[%emt 0:23:09][%cal Oc8h3]} 14. Bf4 {[%emt 0:00:48]} Rb2 {[%emt 0:01:34][%cal Oc8h3]} 15. Rad1 {[%emt 0:08:53] The position is equal.} Rf8 {[%emt 0:00:57][%cal Oc8h3]} 16. Rd2 {[%emt 0:00:11]} Rxd2 {[%emt 0:40:25]} 17. Bxd2 {[%emt 0:00:01]} Be6 {[%emt 0:00:12]} 18. Rc1 {[%emt 0:06:58]} Rc8 {[%emt 0:07:19]} 19. Bb5 {[%emt 0:01:32]} Bxa2 {[%emt 0:01:10]} 20. c4 {[%emt 0:02:08]} Bd4 {[%emt 0:03:49]} 21. Bb4 {[%emt 0:03:43]} Kf8 {[%emt 0:01:03]} 22. Kf1 {[%emt 0:03:22]} Rb8 {[%emt 0:16:14] [#] ...a6 would now be deadly.} 23. Bd2 {[%emt 0:08:20]} Rb6 {[%emt 0:10:26]} 24. Rd1 {[%emt 0:02:09] Bh6+ is the strong threat.} Rd6 {[%emt 0:01:54]} 25. Bh6+ {[%emt 0:16:59]} Kg8 $1 {[%emt 0:00:10]} 26. Rc1 {[%emt 0:00:25] Threatens to win with c5.} Bc5 {[%emt 0:01:20]} 27. Bf4 {[%emt 0:00:49]} Rd8 {[%emt 0:00:41]} 28. f3 {[%emt 0:04:19]} (28. Kg2 $14) 28... f6 $11 {[%emt 0:00:17]} 29. g4 {[%emt 0:02:03]} e5 {[%emt 0:00:30]} 30. Bg3 {[%emt 0:00:08]} Kf7 {[%emt 0:00:26]} 31. Bf2 {[%emt 0:00:09]} Bxf2 32. Kxf2 {[%emt 0:00:01][%mdl 4096] Endgame. KRB-KRB} Rd4 $2 {[%emt 0:01:11] [#] This move loses the game for Black.} (32... a5 $11) 33. Rc2 $1 $18 {[%emt 0:03:47]} Bb1 {[%emt 0:00:35]} 34. Rb2 {[%emt 0:03:34]} Rd1 {[%emt 0:00:02]} 35. c5 {[%emt 0:00:45] Strongly threatening c6.} Ke6 {[%emt 0:00:59]} 36. Ba4 {[%emt 0:03:30]} Rc1 {[%emt 0:00:02]} 37. Rb7 {[%emt 0:04:01] White threatens Bb3+ and mate.} Ba2 {[%emt 0:00:27]} (37... e4 38. Ke3 (38. Rxh7 exf3 39. Bb3+ Ke5 $14) 38... Ba2) 38. Be8 {[%emt 0:00:43][%csl Gb7][%cal Re8f7]} ({Weaker is} 38. Rxh7 Rxc5 39. h4 (39. Rxa7 g5 $16) 39... e4 $18) 38... Rxc5 {[%emt 0:00:56]} 39. Bf7+ {[%emt 0:00:03] Weighted Error Value: White=0.06 (flawless) /Black=0.31.  Loses game:     	---       	Black=1      Mistake:       	White=1     	Black=1      Inaccurate:     	White=1     	Black=1      OK:         	White=11    	Black=11     Best:        	White=2     	---        Strong:       	White=1     	Black=1} ({Less strong is} 39. Rxh7 Bb1 $16) (39. Rxa7 Bd5 40. h4 (40. Rxh7 g5 $16) 40... g5 $16) 1-0

[Event "Spring Chess Classic B 2024"]
[Site "Saint Louis"]
[Date "2024.04.19"]
[Round "9.1"]
[White "Chandra, Akshat"]
[Black "Raja Harshit"]
[Result "1-0"]
[ECO "C54"]
[WhiteElo "2489"]
[BlackElo "2458"]
[Annotator "TA"]
[PlyCount "151"]
[EventDate "2024.04.11"]
[EventCountry "USA"]
[SourceTitle "playchess.com"]
[Source "ChessBase"]
[SourceQuality "1"]
[TimeControl "7200+30"]

{[%evp 50,151,0,0,76,0,0,0,20,0,46,10,23,8,7,0,0,0,0,0,6,1,0,0,72,74,91,71,91,106,133,137,137,137,137,137,148,148,133,116,118,65,55,67,48,8,8,8,8,8,8,8,8,8,8,8,8,8,8,8,8,8,8,8,24,24,24,24,25,8,29972,29974,29974,29975,29975,29976,29974,29977,29977,29978,29978,0,29976,0,29977,29978,29978,29979,29979,29980,29980,29981,29981,29982,29982,29982,29982,29983,29983,29984,29984,29985,29985,29986]} 1. e4 {[%emt 0:00:03]} e5 {[%emt 0:00:43]} 2. Nf3 {[%emt 0:00:04]} Nc6 {[%emt 0:00:08]} 3. Bc4 {[%emt 0:00:07]} Nf6 {[%emt 0:00:14]} 4. d3 {[%emt 0:00:03]} Bc5 {[%emt 0:00:33]} 5. O-O {[%emt 0:00:19]} d6 {[%emt 0:01:29]} 6. c3 {[%emt 0:00:06]} h6 {[%emt 0:03:31]} 7. Re1 {[%emt 0:00:25]} O-O {[%emt 0:00:57] C54: Giuoco Piano: 4 c3 Nf6, main lines with 5 d4 and 5 d3.} 8. b4 {[%emt 0:01:15]} Bb6 {[%emt 0:02:54]} 9. Nbd2 {[%emt 0:00:21]} a5 {[%emt 0:02:30]} 10. b5 {[%emt 0:04:07]} Ne7 {[%emt 0:00:06]} 11. d4 {[%emt 0:00:44]} Ng6 {[%emt 0:11:09]} 12. Bf1 {[%emt 0:05:54]} d5 $146 {[%emt 0:04:24]} ({Predecessor:} 12... Be6 13. Qc2 Re8 14. Bb2 a4 15. c4 exd4 16. Nxd4 Nd7 17. N2f3 Nge5 18. Rad1 Bg4 {0-1 Svidler,P (2714)-Le,Q (2709) Saint Louis Blitz 2021 (4)}) 13. exd5 {[%emt 0:07:21]} exd4 {[%emt 0:12:23]} 14. c4 {[%emt 0:02:12]} a4 {[%emt 0:00:35]} 15. Ba3 {[%emt 0:01:30]} Re8 {[%emt 0:00:56]} 16. Rxe8+ {[%emt 0:00:41]} Qxe8 {[%emt 0:01:50]} 17. Qc2 {[%emt 0:10:32]} Bg4 {[%emt 0:05:03]} 18. Re1 {[%emt 0:26:56]} Qd7 {[%emt 0:02:46]} 19. c5 {[%emt 0:02:51]} Bf5 {[%emt 0:09:05]} 20. Qb2 {[%emt 0:27:15]} Ba5 {[%emt 0:00:06]} 21. c6 {[%emt 0:05:19]} Qxd5 {[%emt 0:00:14]} 22. cxb7 {[%emt 0:09:19]} Qxb7 {[%emt 0:04:23]} 23. Nxd4 {[%emt 0:00:04]} Bd7 {[%emt 0:00:22]} 24. Rc1 {[%emt 0:07:26]} Ne5 {[%emt 0:00:40]} 25. Nc4 {[%emt 0:03:50]} Nxc4 {[%emt 0:00:32]} 26. Rxc4 {[%emt 0:01:09]} Bb6 {[%emt 0:05:02]} (26... Qd5 $11 {keeps the balance.}) 27. Bc5 {[%emt 0:03:44]} (27. Nc6 $16 {Strongly threatening Ne7+.} Bxc6 28. Rxc6 (28. bxc6 Qc8 $14)) 27... Bxc5 {[%emt 0:05:09]} 28. Rxc5 {[%emt 0:00:01]} Qb6 {[%emt 0:00:09]} 29. Qc2 {[%emt 0:01:46]} Rd8 {[%emt 0:01:42]} (29... Re8 $11) 30. Nf3 {[%emt 0:06:45]} Be8 {[%emt 0:01:18]} 31. h3 {[%emt 0:00:28]} a3 {[%emt 0:01:35]} 32. Rc3 {[%emt 0:01:09]} Bxb5 {[%emt 0:01:04]} 33. Bxb5 {[%emt 0:00:01]} Qxb5 {[%emt 0:00:04]} 34. Rxa3 {[%emt 0:00:05]} c5 {[%emt 0:02:24]} 35. Rc3 {[%emt 0:00:07]} Rc8 {[%emt 0:00:51]} 36. Nd4 {[%emt 0:02:02]} Qe8 {[%emt 0:05:10]} (36... Qb4 $11 37. Nf5 Rd8) 37. Rxc5 $16 {[%emt 0:01:54]} Qe1+ {[%emt 0:00:47]} 38. Kh2 {[%emt 0:00:01]} Rxc5 {[%emt 0:00:51]} 39. Qxc5 {[%emt 0:00:03]} Qxf2 {[%emt 0:00:09]} 40. Qc8+ {[%emt 0:00:16]} Kh7 {[%emt 0:00:03]} 41. Qc2+ {[%emt 0:01:03]} Qxc2 {[%emt 0:00:03]} 42. Nxc2 {[%emt 0:00:02]} Nd5 {[%emt 0:02:14]} 43. a4 {[%emt 0:00:01]} Kg6 {[%emt 0:02:41]} 44. Kg3 {[%emt 0:01:08]} Kf5 {[%emt 0:02:06]} 45. Kf3 {[%emt 0:00:08]} ({White should play} 45. a5 $16) 45... Ke5 $14 {[%emt 0:00:49]} 46. a5 {[%emt 0:01:13]} Nc7 {[%emt 0:00:35]} 47. Nb4 {[%emt 0:01:04]} Kd6 {[%emt 0:03:26]} 48. Ke4 {[%emt 0:00:06]} Kc5 {[%emt 0:01:25]} 49. Nd3+ {[%emt 0:00:02]} Kb5 {[%emt 0:00:34]} 50. Ke5 {[%emt 0:01:55]} Ne8 {[%emt 0:02:10]} 51. Kd5 {[%emt 0:00:02]} Kxa5 {[%emt 0:00:23]} 52. Kc6 {[%emt 0:00:37]} Nf6 {[%emt 0:01:52]} 53. Kd6 {[%emt 0:00:20]} Kb5 {[%emt 0:05:56]} 54. Ke7 {[%emt 0:00:25]} Nd5+ {[%emt 0:03:08]} 55. Kxf7 {[%emt 0:00:12]} Kc4 {[%emt 0:00:42]} 56. Ne1 {[%emt 0:00:50]} Kd4 {[%emt 0:07:35]} 57. Kxg7 {[%emt 0:00:05]} Ke3 {[%emt 0:00:42]} 58. Kxh6 {[%emt 0:00:19]} Kf4 $1 {[%emt 0:00:15]} 59. Nd3+ {[%emt 0:01:37]} Kg3 $2 {[%emt 0:01:08][%mdl 8192] [#]} (59... Ke3 $11) 60. Kg5 $1 {[%emt 0:00:01]} Nc3 {[%emt 0:02:50]} 61. Nc5 {[%emt 0:00:24]} Nb5 {[%emt 0:01:08]} 62. h4 {[%emt 0:00:52]} Nd6 {[%emt 0:00:03]} 63. h5 {[%emt 0:00:14]} Nf7+ {[%emt 0:00:06]} 64. Kf6 {[%emt 0:00:40]} Nh6 {[%emt 0:00:03]} 65. Kg5 {[%emt 0:00:41]} Nf7+ $1 {[%emt 0:00:09]} 66. Kf6 {[%emt 0:00:37]} Nh6 $1 {[%emt 0:00:02]} 67. Kg6 {[%emt 0:00:12]} Ng4 {[%emt 0:00:10]} 68. Kg5 {[%emt 0:00:43]} Ne5 {[%emt 0:00:03]} 69. Ne4+ {[%emt 0:00:08]} Kxg2 {[%emt 0:00:06]} 70. Nd6 {[%emt 0:00:09]} Nd7 {[%emt 0:00:40]} 71. h6 {[%emt 0:00:17]} Nf8 {[%emt 0:00:01]} 72. Kf6 {[%emt 0:00:25]} Kf3 {[%emt 0:00:56]} 73. Kg7 {[%emt 0:01:34]} Ne6+ {[%emt 0:00:03]} 74. Kg8 {[%emt 0:00:34]} Ng5 {[%emt 0:00:03]} 75. Nf7 {[%emt 0:00:06]} Ne4 {[%emt 0:00:07]} 76. Kg7 {[%emt 0:00:01]} 1-0

[Event "Spring Chess Classic B 2024"]
[Site "Saint Louis"]
[Date "2024.04.19"]
[Round "9.2"]
[White "Van Foreest, Lucas"]
[Black "Budisavljevic, Luka"]
[Result "1/2-1/2"]
[ECO "B13"]
[WhiteElo "2512"]
[BlackElo "2483"]
[Annotator "TA"]
[PlyCount "66"]
[EventDate "2024.04.11"]
[EventCountry "USA"]
[SourceTitle "playchess.com"]
[Source "ChessBase"]
[SourceQuality "1"]
[TimeControl "7200+30"]

{[%evp 9,66,-14,-1,-8,0,0,11,0,0,9,14,9,9,17,19,8,14,0,14,-4,0,0,6,8,14,21,19,17,17,0,15,-7,-8,-13,0,0,0,0,0,0,0,0,0,0,0,0,0,0,0,0,0,0,0,0,0,0,0,0,0]} 1. d4 {[%emt 0:00:01]} Nf6 {[%emt 0:01:48]} 2. Nc3 {[%emt 0:00:10]} d5 {[%emt 0:00:22]} 3. Bf4 {[%emt 0:00:08]} c5 {[%emt 0:00:25]} 4. e3 {[%emt 0:01:11]} cxd4 {[%emt 0:00:30]} 5. exd4 {[%emt 0:00:08]} a6 {[%emt 0:00:20] The position is equal.} 6. Nf3 {[%emt 0:00:30]} Nc6 {[%emt 0:00:21]} 7. Ne5 {[%emt 0:00:31]} e6 {[%emt 0:00:37]} 8. Nxc6 {[%emt 0:01:54]} bxc6 {[%emt 0:00:07]} 9. Na4 {[%emt 0:00:31]} Bd6 {[%emt 0:03:15]} 10. Bxd6 {[%emt 0:03:33]} Qxd6 {[%emt 0:00:03]} 11. Bd3 {[%emt 0:02:04]} a5 {[%emt 0:05:15]} 12. O-O {[%emt 0:01:17]} Ba6 {[%emt 0:03:59]} 13. Re1 {[%emt 0:05:41]} O-O {[%emt 0:05:28]} 14. Rc1 {[%emt 0:06:04]} Bxd3 {[%emt 0:12:04]} 15. Qxd3 {[%emt 0:11:27]} Rfe8 {[%emt 0:02:10]} 16. h3 {[%emt 0:04:30]} e5 {[%emt 0:04:42]} 17. dxe5 {[%emt 0:00:33]} Rxe5 {[%emt 0:00:05]} 18. Rxe5 {[%emt 0:00:41]} Qxe5 {[%emt 0:00:05]} 19. Rd1 {[%emt 0:02:33]} Re8 {[%emt 0:06:50]} 20. Nc3 {[%emt 0:00:37]} h6 {[%emt 0:01:35]} 21. a3 {[%emt 0:06:31]} Re6 {[%emt 0:03:56]} 22. b4 {[%emt 0:02:54]} axb4 {[%emt 0:02:15]} 23. axb4 {[%emt 0:00:23]} Ne4 {[%emt 0:06:52]} 24. Nxe4 {[%emt 0:00:12]} Qxe4 {[%emt 0:00:27]} 25. Qxe4 {[%emt 0:00:08]} Rxe4 $11 {[%emt 0:00:02][%mdl 4096] Endgame. KR-KR} 26. b5 {[%emt 0:00:05]} cxb5 {[%emt 0:00:04]} 27. Rxd5 {[%emt 0:00:04]} Re1+ {[%emt 0:00:06]} 28. Kh2 {[%emt 0:00:01]} Re2 {[%emt 0:00:06]} 29. f3 {[%emt 0:00:07]} Rxc2 {[%emt 0:00:03]} 30. Rxb5 {[%emt 0:00:02]} Rd2 {[%emt 0:00:06]} 31. Ra5 {[%emt 0:00:02]} Rc2 {[%emt 0:00:05]} 32. Rb5 {[%emt 0:00:01]} Rd2 {[%emt 0:00:05]} 33. Ra5 {[%emt 0:00:01]} Rc2 {[%emt 0:00:05] An uneventful encounter.   Weighted Error Value: White=0.04 (flawless) /Black=0.04 (flawless) .  OK:         	White=9     	Black=5      Best:        	White=1     	---} 1/2-1/2

[Event "Spring Chess Classic B 2024"]
[Site "Saint Louis"]
[Date "2024.04.19"]
[Round "9.3"]
[White "Stearman, Josiah"]
[Black "Kevlishvili, Robby"]
[Result "1/2-1/2"]
[ECO "D14"]
[WhiteElo "2462"]
[BlackElo "2524"]
[Annotator "TA"]
[PlyCount "35"]
[EventDate "2024.04.11"]
[EventCountry "USA"]
[SourceTitle "playchess.com"]
[Source "ChessBase"]
[SourceQuality "1"]
[TimeControl "7200+30"]

{[%evp 25,35,0,0,0,0,0,0,0,0,0,0,0]} 1. c4 {[%emt 0:02:30]} c6 {[%emt 0:01:21]} 2. Nc3 {[%emt 0:00:26]} d5 {[%emt 0:00:18]} 3. cxd5 {[%emt 0:00:23]} cxd5 {[%emt 0:00:12]} 4. d4 {[%emt 0:00:05]} Nf6 {[%emt 0:00:41]} 5. Bf4 {[%emt 0:00:07]} Nc6 {[%emt 0:00:18]} 6. Nf3 {[%emt 0:00:05]} Bf5 {[%emt 0:02:17]} 7. e3 {[%emt 0:00:15]} e6 {[%emt 0:00:18]} 8. Bd3 {[%emt 0:00:09]} Bxd3 {[%emt 0:00:13]} 9. Qxd3 {[%emt 0:00:12]} Bd6 {[%emt 0:00:10]} 10. Bxd6 {[%emt 0:00:06]} Qxd6 {[%emt 0:00:07]} 11. O-O {[%emt 0:00:06]} O-O {[%emt 0:00:21]} 12. Rfc1 {[%emt 0:00:30]} Rfc8 {[%emt 0:00:30]} 13. h3 {[%emt 0:00:22]} h6 {[%emt 0:00:35] The position is equal.} 14. Nd2 {[%emt 0:00:15]} Nd7 {[%emt 0:00:45]} 15. Nb5 {[%emt 0:00:08]} Qe7 {[%emt 0:00:24]} 16. Nc3 {[%emt 0:00:09]} Qd6 {[%emt 0:00:22]} 17. Nb5 {[%emt 0:00:05]} Qe7 {[%emt 0:00:06]} 18. Nc3 {[%emt 0:00:04] Not much happened in this game.   Weighted Error Value: White=0.00 (flawless) /Black=0.00 (flawless) .  OK:         	---       	Black=1} 1/2-1/2